Cogmind - Beta 12 --- EXPLORER MODE // 2023.06.09 @ 20:55:41 // Winter2022/Polymind Player: SPONGE Result: Destroyed by G-34 Mercenary with Small Laser Performance ------------- Evolutions (1) 500 Regions Visited (2) 400 Robots Destroyed (13) 65 Value Destroyed (292) 292 Prototype IDs (0) 0 Alien Tech Used (0) 0 Bonus (830) 830 TOTAL SCORE: 1787 Bonus ------- Polymind Skill 830 Cogmind --------- Core Integrity 0/400 Matter 0/0 Energy 49/50 System Corruption 0% Temperature Cool (30) Movement Core (50) Location -9/Materials Parts ------- > --- POWER (1) -------- (None) > --- PROPULSION (2) --- (None) > --- UTILITY (1) ------ (None) > --- WEAPON (1) ------- Hammer > --- INVENTORY (1) ---- (None) Peak State ------------ > --- POWER ------------ Reinforced Ion Engine > --- PROPULSION ------- Light Treads Light Treads > --- UTILITY ---------- Light Armor Plating > --- WEAPON ----------- Hammer > --- INVENTORY -------- (None) [Rating: 6] Favorites ----------- Power Reinforced Ion Engine Engine Reinforced Ion Engine Propulsion Light Treads Treads Light Treads Flight Unit Flight Unit Utility Light Armor Plating Protection Light Armor Plating Weapon Hammer Ballistic Gun Light Assault Rifle Impact Weapon Hammer Build | -11 -10 -9 ------- Run | Jun Mat Mat Slots Evolved . | . . . Power . | . . . Propulsion . | . . . Utility . | . . . Weapon . | . . . Parts Attached . | . . . Power . | . . . Engine . | . . . Core . | . . . Reactor . | . . . Propulsion . | . . . Treads . | . . . Leg . | . . . Wheel . | . . . Hover . | . . . Flight . | . . . Utility . | . . . Device . | . . . Storage . | . . . Processor . | . . . Hackware . | . . . Protection . | . . . Artifact . | . . . Weapon . | . . . Energy Gun . | . . . Energy Cannon . | . . . Ballistic Gun . | . . . Ballistic Cannon . | . . . Launcher . | . . . Special Weapon . | . . . Impact Weapon . | . . . Slashing Weapon . | . . . Piercing Weapon . | . . . Special Melee Weapon . | . . . Unidentified Prototypes . | . . . Parts Lost 4 | . . 4 Power 1 | . . 1 Propulsion 2 | . . 2 Utility 1 | . . 1 Weapon . | . . . Highest Loss Streak 1 | . . 1 To Critical Strikes . | . . . Average Slot Usage (%) 57 | . 25 62 Engine 15 | . 6 17 Treads 21 | . . 25 Flight 1 | . 12 . Protection 1 | . . 2 Impact Weapon 14 | . . 17 Naked Turns 121 | . 66 55 Heaviest Build 15 | . 4 15 Greatest Support 40 | 3 8 40 Greatest Overweight (x) 3 | . . 3 Average Overweight (x) . | . . . Largest Inventory Capacity 1 | . . 1 Average Capacity . | . . . Most Carried . | . . . Average Carried . | . . . Final Capacity 1 | . . 1 Final Carried . | . . . Class Distribution -------------------- 74% | Brawler 21% | Cogmind 3% | Swarmer Dominant Class ---------------- Cogmind | -10/Materials Brawler | -9/Materials Resources | -11 -10 -9 ----------- Run | Jun Mat Mat Matter Collected 10 | . 10 . Remotely . | . . . Salvage Created 309 | . 23 286 Parts 19 | . 1 18 Haulers Intercepted . | . . . Recyclers Shooed . | . . . Parts Field Recycled . | . . . Retrieved Matter . | . . . Parts Self-Destructed . | . . . Prevented . | . . . Kills | -11 -10 -9 ------- Run | Jun Mat Mat Combat Hostiles Destroyed 7 | . 1 6 Melee 5 | . . 5 Guns 1 | . 1 . Classes Destroyed 6 | . 1 5 Worker 1 | . . 1 Builder 2 | . . 2 Watcher 3 | . . 3 Swarmer 2 | . 1 1 Grunt 2 | . . 2 Sentry 3 | . . 3 Best Kill Streak 3 | . 1 3 Combat Bots Only 2 | . 1 2 Max Kills in Single Turn 1 | . 1 1 Gunslinging . | . . . Exploded . | . . . Melee 1 | . . 1 Uniques/NPCs Destroyed . | . . . Combat | -11 -10 -9 -------- Run | Jun Mat Mat Damage Taken 1032 | . 61 971 Core 459 | . 56 403 Absorbed by Shields . | . . . Core Remaining (%) 88 | 100 77 . Volleys Fired 8 | . 8 . Largest 1 | . 1 . Hottest 20 | . 20 . Shots Fired 8 | . 8 . Gun 8 | . 8 . Cannon . | . . . Launcher . | . . . Special . | . . . Kinetic 8 | . 8 . Thermal . | . . . Explosive . | . . . Electromagnetic . | . . . Robot Hit Streak 3 | . 3 . Robot Miss Streak 1 | . 1 . Penetration Max . | . . . Secondary Targets . | . . . Shots Hit Robots 42 | . 6 36 Core Hits 10 | . 2 8 Critical Kills 1 | . . 1 Critical Parts Destroyed 6 | . . 6 Critical Strikes 7 | . . 7 Smash 7 | . . 7 Melee Attacks 42 | . . 42 Impact 42 | . . 42 Slashing . | . . . Piercing . | . . . Sneak Attacks 5 | . . 5 Combat Hostiles . | . . . Follow-up Attacks . | . . . Damage Inflicted 1009 | . 53 956 Guns 53 | . 53 . Cannons . | . . . Explosions . | . . . Melee 938 | . . 938 Ramming 18 | . . 18 Kinetic 53 | . 53 . Thermal . | . . . Explosive . | . . . Electromagnetic . | . . . Impact 938 | . . 938 Slashing . | . . . Piercing . | . . . Highest Corruption . | . . . Average Corruption . | . . . Corruption Purged . | . . . Corruption Blocked . | . . . Overload Shots . | . . . Overflow Damage 209 | . . 209 Projectiles . | . . . Explosions . | . . . Melee 209 | . . 209 Knockbacks 1 | . . 1 Impact 1 | . . 1 Kinetic . | . . . Secondary . | . . . Self-Inflicted Damage 18 | . . 18 Shots . | . . . Rammed . | . . . Targets Rammed . | . . . Kicked . | . . . Crushed . | . . . Highest Temperature 88 | . 27 88 Average Temperature 26 | . 16 28 Received Heat Transfer 549 | . . 549 Siege Activations . | . . . Robots Corrupted . | . . . Combat Hostiles . | . . . Parts Fried 10 | . . 10 Impact Corruptions 10 | . . 10 Robots Melted . | . . . Combat Hostiles . | . . . Parts Melted . | . . . Heat Transferred . | . . . Parts Sabotaged . | . . . Parts Stolen . | . . . Parts Stripped . | . . . Power Chain Reactions . | . . . Missiles Intercepted . | . . . Alert | -11 -10 -9 ------- Run | Jun Mat Mat Peak Influence 269 | . 89 269 Initial 26 | . . 26 Average 121 | . 34 140 Maximum Alert Level 1 | . . 1 Low Security (%) 82 | 100 100 78 Level 1 17 | . . 21 Level 2 . | . . . Level 3 . | . . . Level 4 . | . . . Level 5 . | . . . High Security . | . . . Max Security . | . . . Squads Dispatched 1 | . . 1 Investigation . | . . . Extermination . | . . . Reinforcement 1 | . . 1 Assault . | . . . Garrison . | . . . Intercept . | . . . Searches Triggered . | . . . Construction Impeded . | . . . Haulers Reinforced . | . . . Active Scanning Responses . | . . . Cargo Convoy Interrupts . | . . . Stealth | -11 -10 -9 --------- Run | Jun Mat Mat Distress Signals 3 | . 1 2 Communications Jammed . | . . . Distress Signals . | . . . Times Spotted 32 | . 9 23 Peak Tracking Total 7 | . 5 7 Tactical Retreats 2 | . . 2 Traps | -11 -10 -9 ------- Run | Jun Mat Mat Traps Triggered . | . . . Indirectly . | . . . Trap Hack Attempts . | . . . Triggered . | . . . Disarmed . | . . . Reprogrammed . | . . . Reused . | . . . Traps Extracted . | . . . Installed . | . . . Triggered . | . . . Machines | -11 -10 -9 ---------- Run | Jun Mat Mat Machines Disabled 1 | . . 1 Max in Single Turn 1 | . . 1 Machines Repaired . | . . . Machines Sabotaged . | . . . Overloaded Fab Kills . | . . . Hacking | -11 -10 -9 --------- Run | Jun Mat Mat Machines Accessed 1 | . . 1 Terminals 1 | . . 1 Fabricators . | . . . Repair Stations . | . . . Recycling Units . | . . . Scanalyzers . | . . . Garrison Access . | . . . Total Hacks 3 | . . 3 Successful 3 | . . 3 Failed . | . . . Catastrophic . | . . . Database Lockouts . | . . . Manual . | . . . Terminals 3 | . . 3 Fabricators . | . . . Repair Stations . | . . . Recycling Units . | . . . Scanalyzers . | . . . Garrison Access . | . . . Terminal Hacks 3 | . . 3 Alert Level 2 | . . 2 Investigation Status 1 | . . 1 Fabricator Hacks . | . . . Repair Station Hacks . | . . . Recycling Unit Hacks . | . . . Scanalyzer . | . . . Garrison Access Hacks . | . . . Unauthorized Hacks . | . . . Terminals . | . . . Fabricators . | . . . Repair Stations . | . . . Recycling Units . | . . . Scanalyzers . | . . . Garrison Access . | . . . Data Cores Recovered . | . . . Used . | . . . Hacking Detections 1 | . . 1 Full Trace Events . | . . . Feedback Events . | . . . Feedback Blocked . | . . . Robot Schematics Acquired . | . . . Robots Built . | . . . Authchips . | . . . Time . | . . . Total Robot Build Rating . | . . . Part Schematics Acquired . | . . . Parts Built . | . . . Authchips . | . . . Time . | . . . Total Part Build Rating . | . . . Parts Repaired . | . . . Time . | . . . Parts Recycled . | . . . Recycled Matter . | . . . Retrieved Matter . | . . . Retrieved Components . | . . . Parts Scanalyzed . | . . . Part Schematics Acquired . | . . . Parts Damaged . | . . . Bothacking | -11 -10 -9 ------------ Run | Jun Mat Mat Used RIF Installer . | . . . Robots Hacked 3 | . 2 1 Non-combat . | . . . Combat 3 | . 2 1 Robot Hacks Applied 3 | . 2 1 find_shortcuts 3 | . 2 1 Relay Couplers Released . | . . . Fabnet Peak Effective % . | . . . Robots Rewired . | . . . Allies Hacked . | . . . Hacks Repelled . | . . . Allies | -11 -10 -9 -------- Run | Jun Mat Mat Total Allies . | . . . Largest Group . | . . . Highest-Rated Group . | . . . Highest-Rated Ally . | . . . Total Orders . | . . . Ally Attacks . | . . . Total Damage . | . . . Kills . | . . . Allies Corrupted . | . . . Allies Melted . | . . . Intel | -11 -10 -9 ------- Run | Jun Mat Mat Robot Analysis Total 2 | . 1 1 Derelict Logs Recovered . | . . . Drone Launches . | . . . Drone Recoveries . | . . . Exploration | -11 -10 -9 ------------- Run | Jun Mat Mat Turns Passed 563 | 10 88 465 Spaces Moved 428 | 20 145 263 Core 233 | 20 123 90 Treads 173 | . . 173 Legs . | . . . Wheels . | . . . Hover . | . . . Flight 22 | . 22 . Fastest Speed 37 | 50 37 50 Average Speed 96 | 50 48 127 Slowest Speed 200 | 50 50 200 Overloaded Moves . | . . . Propulsion Burnouts . | . . . Robots Hopped . | . . . Cave-ins Triggered . | . . . Exploration Rate (%) 24 | 4 39 30 Regions Visited 2 Branch Regions . Pre-discovered Areas . | . . . Known Exits Taken 2 | 1 1 . Unknown Exits Taken . | . . . Scrap Searched . | . . . Spaces Dug 2 | . . 2 Terrain Destroyed 2 | . . 2 Melee 2 | . . 2 Projectile . | . . . AOE . | . . . Terrain Rammed 1 | . . 1 Walls Destroyed 1 | . . 1 Machines Disabled . | . . . Actions | -11 -10 -9 --------- Run | Jun Mat Mat Total 494 | 19 156 319 Wait 15 | . 2 13 Move 426 | 19 144 263 Hop . | . . . Pick Up . | . . . Fast Attach . | . . . Attach . | . . . Detach . | . . . Swap . | . . . Drop . | . . . Fire 8 | . 8 . Melee 42 | . . 42 Ram 1 | . . 1 Kick . | . . . Crush . | . . . Escape Stasis . | . . . Rewire 2 | . 2 . Trap . | . . . Miscellaneous . | . . . Route ------- -11/Junkyard -10/Materials -9/Materials (discovered 1 exit: *Min) History --------- Turn | Location | Event 3 | -11/Junkyard | Identified exit to Materials 3 | -11/Junkyard | Discovered exit to Materials (range 15) 11 | -11/Junkyard | Entered Materials 43 | -10/Materials | Identified exit to Materials 43 | -10/Materials | Discovered exit to Materials (range 15) 99 | -10/Materials | Entered another Materials area 395 | -9/Materials | Core integrity fell below 50% 440 | -9/Materials | Identified exit to Mines 440 | -9/Materials | Discovered exit to Mines (range 13) 557 | -9/Materials | Core integrity fell below 20% 564 | -9/Materials | Destroyed by G-34 Mercenary with Small Laser Last Messages --------------- K-01 Serf system terminally corrupted. Lgt. Ion Engine fried. K-01 Serf collects debris. Lgt. Treads destroyed. W-16 Scout distress signal alerts nearby ally. G-34 Mercenary suffers critical hit (Smash). Destroyed Ion Engine. G-34 Mercenary system corrupted by crushing effect. G-34 Mercenary system terminally corrupted. Aluminum Leg fried. K-01 Serf collects debris. K-01 Serf cleans the Matter Pump. K-01 Serf collects debris. G-47 Trooper suffers critical hit (Smash). Destroyed Lgt. Nuclear Core. G-47 Trooper system corrupted by crushing effect. G-47 Trooper knocked back. K-01 Serf collects debris. Rnf. Ion Engine destroyed. K-01 Serf cleans the Matter Pump. Map ----- +----------------------------------------------------+ | ?????????????????????????????????????????????????? | | ?????????????????????????????????????????????????? | | ?????????????????????????????????????????????????? | | ?????????????????????????????????????????????????? | | ?????????????????????????????????????????????????? | | ?????????????????????????????????????????????????? | | ??????/??????????????????????????????????????????? | | ?????????????????????????????????????????????????? | | ?????????????????????????????????????????????????? | | ?????????????????????????????????????????????????? | | ?????????????????????????????????????????????????? | | ?????????????????????????????????????????????????? | | ?????????????????????????????????????????????????? | | ?????????????????????????????????????????????????? | | ?????????????????????####+###??###???????????????? | | ??#+##?#?????????????# ?? ????????????????? | | ?? + ?????????????# ? ????????????????? | | ## # ??????????????# """ ????????????????? | | % +???????????????# """ #????????????????? | | #???????????????# """ #????????????????? | | #???????????????# #????????????????? | | %= #???????????????# #????????????????? | | #???????????????# """ #????????????????? | | #???????????????# Y """k #????????????????? | | %######?????????????# """ #????????????????? | | ######????????# gb #????????????????? | | ########## % #????????????????? | | = % % g"""k #????????????????? | | % ########## a """ #????????????????? | | ## ## # #??# o """ #????????????????? | | ?## ### # #??# #????????????????? | | ??# #?# + #??# r #????????????????? | | ??# #?# # #??######## #????????????????? | | ??# #?# #######?????????# #????????????????? | | ??# #?##+##???????????????# #????????????????? | | ?? ?????????????????????? #????????????????? | | ?" #?????????????????????? #????????????????? | | !! #??????????????????????? #????????????????? | | "" > #?????????????????????????????????????????? | | || #?????????????????????????????????????????? | | "" #?????????????????????????????????????????? | | " #?????????????????????????????????????????? | | ### ##?????????????????????????????????????????? | | ??# #??????????????????????????????????????????? | | ?? +??????????????????????????????????????????? | | ?? ???????????????????????????????????????????? | | ?? ???????????????????????????????????????????? | | ??####???????????????????????????????????????????? | | ?????????????????????????????????????????????????? | | ?????????????????????????????????????????????????? | +----------------------------------------------------+ Best States ------------- Heat Dissipation 28 Energy Generation 17 Energy Capacity 215 Matter Stores 100 Matter Capacity 100 Sight Range 16 Terrain Scan Density 10 Armor Coverage 150 Resistance: KI 35 Resistance: TH 35 Resistance: EX 35 Resistance: EM 35 Resistance: I 60 Resistance: S 60 Resistance: P 35 Evasion (%) 62 Recoil Reduction 2 Offensive Hacking 20 Item Schematics ----------------- None Robot Schematics ------------------ None Fabricated ------------ Nothing Alien Tech Used ----------------- None Achievements -------------- None Challenges ------------ None Polymind | -11 -10 -9 ---------- Run | Jun Mat Mat Hosts 3 | . 2 1 Combat Hostiles 3 | . 2 1 Allies . | . . . Unique Host Classes 2 | . 1 1 Average Host Suspicion 100 | . 100 100 Unsuspicious Activity 3 | . 3 . Returns to Shadow . | . . . Fuzzy Dispatches . | . . . Protomatter Created 37 | . . 37 Used 35 | . 12 23 Decayed . | . . . Highest Spend 23 | . 6 23 Top 5 Hosts by Kills: B-36 Bruiser (-9/Materials: 6) S-10 Pest (-10/Materials: 1) Game ------ Seed NeutrinoGrenadeWheel Manual? 0 Play Time 00:07:38 Cumulative 37.2 hours Start 2023.06.09 @ 20:50:56 End 2023.06.09 @ 20:55:41 Sessions 1 Manual Loads 0 Difficulty Explorer Special Mode Winter2022/Polymind Game No. 14 Rogue 0 Adventurer 7 Explorer 7 Win Type - Total 0 Types 0/0/0/0/0/0/0/0/0 Lore% 10 Gallery% 28 Achievement% 100 Wizard Run 0 Options --------- ASCII 0 Keyboard 0 Movement Mouse Keybinds 0 Fullscreen 0 Font 16/Terminus Map View 76x50 Tactical HUD 0 Map Filters NONE Filters NONE Steam 1 RUN: af78c660-7e05-4bbe-936f-b6dc558e6ff6